fUSD/lending_fUSD_20250618
["ID","MTS","AMOUNT","RATE_DAILY","PERIOD"]
[366424015,1750249795195,-151.527319,0.00016438,2]
[366424016,1750249795221,-490.0,0.00016438,2]
[366424017,1750249795242,-151.0,0.00016438,2]
[366424018,1750249795263,-160.264395,0.00016438,2]
[366424019,1750249795283,-151.0,0.00016438,2]
[366424020,1750249795305,-151.0,0.00016438,2]
[366424021,1750249795326,-151.0,0.00016438,2]
[366424022,1750249795348,-151.0,0.00016438,2]
[366424023,1750249795371,-151.0,0.00016438,2]
[366424024,1750249795393,-151.0,0.00016438,2]
[366424025,1750249795414,-151.0,0.00016438,2]
[366424026,1750249795435,-151.0,0.00016438,2]
[366424027,1750249795457,-151.0,0.00016438,2]
[366424028,1750249795479,-151.0,0.00016438,2]
[366424029,1750249795502,-151.0,0.00016438,2]
[366424030,1750249795523,-151.0,0.00016438,2]
[366424031,1750249795545,-151.0,0.00016438,2]
[366424032,1750249795568,-151.0,0.00016438,2]
[366424033,1750249795589,-553.70555967,0.00016438,2]
[366424034,1750249795610,-490.0,0.00016438,2]
[366424035,1750249795631,-891.36,0.00016438,2]
[366424036,1750249795653,-176.353491,0.00016438,2]
[366424037,1750249795676,-176.353491,0.00016438,2]
[366424038,1750249795697,-176.353491,0.00016438,2]
[366424039,1750249795719,-176.353491,0.00016438,2]
[366424040,1750249795741,-176.353491,0.00016438,2]
[366424041,1750249795762,-176.353491,0.00016438,2]
[366424042,1750249795784,-176.353491,0.00016438,2]
[366424043,1750249795805,-176.353491,0.00016438,2]
[366424044,1750249795826,-176.353491,0.00016438,2]
[366424045,1750249795849,-176.353491,0.00016438,2]
[366424046,1750249795871,-82.1051111,0.00016438,2]
[366424047,1750249795979,-94.2483799,0.00016438,2]
[366424048,1750249796001,-176.353491,0.00016438,2]
[366424049,1750249796022,-176.353491,0.00016438,2]
[366424050,1750249796043,-176.353491,0.00016438,2]
[366424051,1750249796064,-176.353491,0.00016438,2]
[366424052,1750249796085,-176.353491,0.00016438,2]
[366424053,1750249796106,-490.0,0.00016438,2]
[366424054,1750249796128,-176.353491,0.00016438,2]
[366424055,1750249796149,-176.353491,0.00016438,2]
[366424056,1750249796170,-176.353491,0.00016438,2]
[366424057,1750249796191,-176.353496,0.00016438,2]
[366424058,1750249796216,-490.0,0.00016438,2]
[366424059,1750249796237,-611.82,0.00016438,2]
[366424060,1750249796260,-659.41,0.00016438,2]
[366424061,1750249796281,-150.48273956,0.00016438,2]
[366424062,1750249796304,-150.0,0.00016438,2]
[366424063,1750249796325,-150.0,0.00016438,2]
[366424064,1750249796347,-490.0,0.00016438,2]
[366424065,1750249796368,-150.0,0.00016438,2]
[366424066,1750249796390,-500.0,0.00016438,2]
[366424067,1750249796411,-152.11962139,0.00016438,2]
[366424068,1750249796433,-490.0,0.00016438,2]
[366424069,1750249796455,-490.0,0.00016438,2]
[366424070,1750249796476,-150.0,0.00016438,2]
[366424071,1750249796498,-490.0,0.00016438,2]
[366424072,1750249796519,-539.48,0.00016438,2]
[366424073,1750249796541,-150.0,0.00016438,2]
[366424074,1750249796563,-720.16,0.00016438,2]
[366424075,1750249796583,-490.0,0.00016438,2]
[366424076,1750249796604,-151.605827,0.00016438,2]
[366424077,1750249796624,-490.0,0.00016438,2]
[366424078,1750249796646,-163.49200815,0.00016438,2]
[366424079,1750249796996,-383.22799185,0.00016438,2]
[366424080,1750249797017,-859.35,0.00016438,2]
[366424081,1750249797038,-298.07663356,0.00016438,2]
[366424082,1750249797061,-490.0,0.00016438,2]
[366424083,1750249797083,-540.81,0.00016438,2]
[366424084,1750249797104,-605.26,0.00016438,2]
[366424085,1750249797126,-151.0,0.00016438,2]
[366424086,1750249797148,-163.1631,0.00016438,2]
[366424087,1750249797170,-618.03,0.00016438,2]
[366424088,1750249797191,-490.0,0.00016438,2]
[366424089,1750249797214,-490.0,0.00016438,2]
[366424090,1750249797236,-490.0,0.00016438,2]
[366424091,1750249797258,-490.0,0.00016438,2]
[366424092,1750249797280,-300.0,0.00016438,2]
[366424093,1750249797302,-490.0,0.00016438,2]
[366424094,1750249797324,-490.0,0.00016438,2]
[366424095,1750249797346,-796.45,0.00016438,2]
[366424096,1750249797368,-629.15,0.00016438,2]
[366424097,1750249797390,-705.27,0.00016438,2]
[366424098,1750249797413,-520.21227459,0.00016438,2]
[366424099,1750249797454,-534.19772541,0.00016438,2]
[366424100,1750249797480,-490.0,0.00016438,2]
[366424101,1750249797502,-490.0,0.00016438,2]
[366424102,1750249797524,-490.0,0.00016438,2]
[366424103,1750249797547,-871.03,0.00016438,2]
[366424104,1750249797569,-490.0,0.00016438,2]
[366424105,1750249797591,-490.0,0.00016438,2]
[366424106,1750249797612,-471.84794786,0.00016438,2]
[366424107,1750249797635,-490.0,0.00016438,2]
[366424108,1750249797656,-573.13,0.00016438,2]
[366424109,1750249797680,-490.0,0.00016438,2]
[366424110,1750249797702,-490.0,0.00016438,2]
[366424111,1750249797723,-873.98,0.00016438,2]
[366424112,1750249797745,-554.11,0.00016438,2]
[366424113,1750249797767,-493.28,0.00016438,2]
[366424114,1750249797793,-490.0,0.00016438,2]
[366424115,1750249797815,-490.0,0.00016438,2]
[366424116,1750249797837,-490.0,0.00016438,2]
[366424117,1750249797859,-238.42432673,0.00016438,2]
[366424118,1750249798125,-71.69567327,0.00016438,2]
[366424119,1750249798165,-556.62,0.00016438,2]
[366424120,1750249798188,-559.2072202,0.00016438,2]
[366424121,1750249798215,-490.0,0.00016438,2]
[366424122,1750249798237,-490.0,0.00016438,2]
[366424123,1750249798262,-490.0,0.00016438,2]
[366424124,1750249798294,-490.0,0.00016438,2]
[366424125,1750249798322,-490.0,0.00016438,2]
[366424126,1750249798345,-490.0,0.00016438,2]
[366424127,1750249798369,-647.22,0.00016438,2]
[366424128,1750249798392,-490.0,0.00016438,2]
[366424129,1750249798415,-490.0,0.00016438,2]
[366424130,1750249798439,-587.45,0.00016438,2]
[366424131,1750249798464,-490.0,0.00016438,2]
[366424132,1750249798489,-490.0,0.00016438,2]
[366424133,1750249798511,-490.0,0.00016438,2]
[366424134,1750249798534,-490.0,0.00016438,2]
[366424135,1750249798556,-490.0,0.00016438,2]
[366424136,1750249798577,-661.26,0.00016438,2]
[366424137,1750249798601,-490.0,0.00016438,2]
[366424138,1750249798624,-56.54710653,0.00016438,2]
[366424139,1750249798943,-433.45289347,0.00016438,2]
[366424140,1750249798965,-490.0,0.00016438,2]
[366424141,1750249798988,-490.0,0.00016438,2]
[366424142,1750249799010,-490.0,0.00016438,2]
[366424143,1750249799031,-495.56,0.00016438,2]
[366424144,1750249799053,-1343.86,0.00016438,2]
[366424145,1750249799076,-490.0,0.00016438,2]
[366424146,1750249799097,-490.0,0.00016438,2]
[366424147,1750249799119,-490.0,0.00016438,2]
[366424148,1750249799140,-490.0,0.00016438,2]
[366424149,1750249799162,-490.0,0.00016438,2]
[366424150,1750249799184,-500.0,0.00016438,2]
[366424151,1750249799210,-490.0,0.00016438,2]
[366424152,1750249799232,-500.0,0.00016438,2]
[366424153,1750249799255,-151.0,0.00016438,2]
[366424154,1750249799280,-500.0,0.00016438,2]
[366424155,1750249799302,-490.0,0.00016438,2]
[366424156,1750249799325,-151.0,0.00016438,2]
[366424157,1750249799349,-500.0,0.00016438,2]
[366424158,1750249799372,-500.0,0.00016438,2]
[366424159,1750249799396,-25.12710653,0.00016438,2]
[366424160,1750249805797,-727.0,0.00016437,2]
[366424161,1750249805823,-300.46,0.00016438,2]
[366424162,1750249805847,-125.87289347,0.00016438,2]
[366424163,1750249805873,-500.0,0.00016438,2]
[366424164,1750249805896,-151.0,0.00016438,2]
[366424165,1750249805920,-151.0,0.00016438,2]
[366424166,1750249805944,-151.0,0.00016438,2]
[366424167,1750249805967,-151.0,0.00016438,2]
[366424168,1750249805990,-151.0,0.00016438,2]
[366424169,1750249806014,-151.0,0.00016438,2]
[366424170,1750249806037,-186.940268,0.00016438,2]
[366424171,1750249806060,-277.639115,0.00016438,2]
[366424172,1750249806082,-767.16,0.00016438,2]
[366424173,1750249806104,-609.61,0.00016438,2]
[366424174,1750249806126,-490.0,0.00016438,2]
[366424175,1750249806149,-490.0,0.00016438,2]
[366424176,1750249806170,-151.0,0.00016438,2]
[366424177,1750249806194,-151.0,0.00016438,2]
[366424178,1750249806220,-151.0,0.00016438,2]
[366424179,1750249806242,-151.0,0.00016438,2]
[366424180,1750249806265,-490.0,0.00016438,2]
[366424181,1750249806288,-490.0,0.00016438,2]
[366424182,1750249806412,-490.0,0.00016438,2]
[366424183,1750249806434,-490.0,0.00016438,2]
[366424184,1750249806457,-490.0,0.00016438,2]
[366424185,1750249806479,-596.19,0.00016438,2]
[366424186,1750249806501,-490.0,0.00016438,2]
[366424187,1750249806524,-479.12772353,0.00016438,2]
[366424188,1750249806560,-10.87227647,0.00016438,2]
[366424189,1750249806583,-490.0,0.00016438,2]
[366424190,1750249806605,-490.0,0.00016438,2]
[366424191,1750249806627,-151.0,0.00016438,2]
[366424192,1750249806649,-151.0,0.00016438,2]
[366424193,1750249806670,-151.0,0.00016438,2]
[366424194,1750249806691,-835.11,0.00016438,2]
[366424195,1750249806713,-151.0,0.00016438,2]
[366424196,1750249806735,-490.0,0.00016438,2]
[366424197,1750249806757,-490.0,0.00016438,2]
[366424198,1750249806778,-151.0,0.00016438,2]
[366424199,1750249806800,-151.0,0.00016438,2]
[366424200,1750249806822,-151.0,0.00016438,2]
[366424201,1750249806843,-151.0,0.00016438,2]
[366424202,1750249806866,-591.85,0.00016438,2]
[366424203,1750249806889,-151.0,0.00016438,2]
[366424204,1750249806910,-151.0,0.00016438,2]
[366424205,1750249806932,-439.04994016,0.00016438,2]
[366424206,1750249806954,-151.0,0.00016438,2]
[366424207,1750249806976,-151.0,0.00016438,2]
[366424208,1750249807002,-151.0,0.00016438,2]
[366424209,1750249807024,-151.0,0.00016438,2]
[366424210,1750249807046,-151.0,0.00016438,2]
[366424211,1750249807069,-186.947242,0.00016438,2]
[366424212,1750249807090,-490.0,0.00016438,2]
[366424213,1750249807113,-490.0,0.00016438,2]
[366424214,1750249807136,-201.89493759,0.00016438,2]
[366424215,1750249807158,-490.0,0.00016438,2]
[366424216,1750249807181,-503.0124461,0.00016438,2]
[366424217,1750249807203,-490.0,0.00016438,2]
[366424218,1750249807226,-490.0,0.00016438,2]
[366424219,1750249807248,-494.04,0.00016438,2]
[366424220,1750249807269,-62.22315768,0.00016438,2]
[366424221,1750249807471,-427.77684232,0.00016438,2]
[366424222,1750249807494,-490.0,0.00016438,2]
[366424223,1750249807516,-495.83810809,0.00016438,2]
[366424224,1750249807537,-490.0,0.00016438,2]
[366424225,1750249807559,-492.59062077,0.00016438,2]
[366424226,1750249807580,-490.0,0.00016438,2]
[366424227,1750249807602,-490.0,0.00016438,2]
[366424228,1750249807623,-490.0,0.00016438,2]
[366424229,1750249807645,-490.0,0.00016438,2]
[366424230,1750249807668,-151.0,0.00016438,2]
[366424231,1750249807690,-151.0,0.00016438,2]
[366424232,1750249807712,-151.0,0.00016438,2]
[366424233,1750249807738,-151.0,0.00016438,2]
[366424234,1750249807760,-151.0,0.00016438,2]
[366424235,1750249807782,-490.0,0.00016438,2]
[366424236,1750249807804,-151.0,0.00016438,2]
[366424237,1750249807826,-490.0,0.00016438,2]
[366424238,1750249807848,-353.53333005,0.00016438,2]
[366424239,1750249807870,-246.39266234,0.00016438,2]
[366424240,1750249807892,-519.0,0.00016438,2]
[366424241,1750249807914,-500.0,0.00016438,2]
[366424242,1750249807937,-500.0,0.00016438,2]
[366424243,1750249807959,-500.0,0.00016438,2]
[366424244,1750249807981,-490.0,0.00016438,2]
[366424245,1750249808003,-490.0,0.00016438,2]
[366424246,1750249808025,-158.86843643,0.00016438,2]
[366424247,1750249808177,-331.13156357,0.00016438,2]
[366424248,1750249808200,-490.0,0.00016438,2]
[366424249,1750249808227,-490.0,0.00016438,2]
[366424250,1750249808249,-490.0,0.00016438,2]
[366424251,1750249808272,-490.0,0.00016438,2]
[366424252,1750249808295,-490.0,0.00016438,2]
[366424253,1750249808317,-198.456912,0.00016438,2]
[366424254,1750249808340,-581.09,0.00016438,2]
[366424255,1750249808363,-490.0,0.00016438,2]
[366424256,1750249808385,-490.0,0.00016438,2]
[366424257,1750249808406,-490.0,0.00016438,2]
[366424258,1750249808428,-490.0,0.00016438,2]
[366424259,1750249808451,-490.0,0.00016438,2]
[366424260,1750249808473,-490.0,0.00016438,2]
[366424261,1750249808495,-1106.999356,0.00016438,2]
[366424262,1750249808516,-490.0,0.00016438,2]
[366424263,1750249808538,-490.0,0.00016438,2]
[366424264,1750249808560,-490.0,0.00016438,2]
[366424265,1750249808582,-490.0,0.00016438,2]
[366424266,1750249808604,-432.32216843,0.00016438,2]
[366424267,1750249808857,-821.0,0.00016438,2]
[366424268,1750249808879,-57.67783157,0.00016438,2]
[366424269,1750249808901,-490.0,0.00016438,2]
[366424270,1750249808922,-490.0,0.00016438,2]
[366424271,1750249808945,-490.0,0.00016438,2]
[366424272,1750249808967,-490.0,0.00016438,2]
[366424273,1750249808989,-490.0,0.00016438,2]
[366424274,1750249809012,-490.0,0.00016438,2]
[366424275,1750249809033,-490.0,0.00016438,2]
[366424276,1750249809055,-604.31,0.00016438,2]
[366424277,1750249809078,-490.0,0.00016438,2]
[366424278,1750249809100,-490.0,0.00016438,2]
[366424279,1750249809122,-490.0,0.00016438,2]
[366424280,1750249809144,-490.0,0.00016438,2]
[366424281,1750249809166,-490.0,0.00016438,2]
[366424282,1750249809188,-490.0,0.00016438,2]
[366424283,1750249809212,-490.0,0.00016438,2]
[366424284,1750249809234,-490.0,0.00016438,2]
[366424285,1750249809257,-914.64,0.00016438,2]
[366424286,1750249809279,-252.37216843,0.00016438,2]
[366424287,1750249809313,-2327.91654957,0.00016438,2]
[366424288,1750249809336,-490.0,0.00016438,2]
[366424289,1750249809358,-490.0,0.00016438,2]
[366424290,1750249809381,-490.0,0.00016438,2]
[366424291,1750249809403,-658.42,0.00016438,2]
[366424292,1750249809428,-490.0,0.00016438,2]
[366424293,1750249809450,-490.0,0.00016438,2]
[366424294,1750249809473,-490.0,0.00016438,2]
[366424295,1750249809495,-490.0,0.00016438,2]
[366424296,1750249809519,-151.0,0.00016438,2]
[366424298,1750249809541,-151.0,0.00016438,2]
[366424299,1750249809562,-693.32,0.00016438,2]
[366424301,1750249809593,-151.0,0.00016438,2]
[366424303,1750249809615,-213.406953,0.00016438,2]
[366424304,1750249809637,-490.0,0.00016438,2]
[366424305,1750249809659,-490.0,0.00016438,2]
[366424306,1750249809681,-490.0,0.00016438,2]
[366424307,1750249809702,-490.0,0.00016438,2]
[366424308,1750249809725,-263.93649743,0.00016438,2]
[366424309,1750249809860,-234.46331839,0.00016438,2]
[366424310,1750249809882,-545.09,0.00016438,2]
[366424311,1750249809904,-490.0,0.00016438,2]
[366424312,1750249809925,-540.99,0.00016438,2]
[366424313,1750249809947,-521.76786814,0.00016438,2]
[366424314,1750249809969,-490.0,0.00016438,2]
[366424315,1750249809991,-654.55,0.00016438,2]
[366424316,1750249810012,-490.0,0.00016438,2]
[366424317,1750249810033,-490.0,0.00016438,2]
[366424318,1750249810056,-151.0,0.00016438,2]
[366424319,1750249810078,-151.0,0.00016438,2]
[366424320,1750249810099,-151.0,0.00016438,2]
[366424321,1750249810121,-151.0,0.00016438,2]
[366424322,1750249810142,-151.0,0.00016438,2]
[366424323,1750249810164,-151.0,0.00016438,2]
[366424324,1750249810185,-179.211952,0.00016438,2]
[366424325,1750249810208,-565.88,0.00016438,2]
[366424326,1750249810231,-490.0,0.00016438,2]
[366424327,1750249810253,-490.0,0.00016438,2]
[366424328,1750249810275,-151.84914816,0.00016438,2]
[366424329,1750249810298,-490.0,0.00016438,2]
[366424330,1750249810323,-549.57,0.00016438,2]
[366424331,1750249810346,-490.0,0.00016438,2]
[366424332,1750249810369,-490.0,0.00016438,2]
[366424333,1750249810393,-492.97445641,0.00016438,2]
[366424334,1750249810415,-247.6532569,0.00016438,2]
[366424335,1750249811007,-499.83,0.00016438,2]
[366424336,1750249811032,-243.48049198,0.00016438,2]
[366424337,1750249811057,-1322.16,0.00016438,2]
[366424338,1750249811082,-490.0,0.00016438,2]
[366424339,1750249811105,-548.51,0.00016438,2]
[366424340,1750249811128,-490.0,0.00016438,2]
[366424341,1750249811152,-151.0,0.00016438,2]
[366424342,1750249811176,-490.0,0.00016438,2]
[366424343,1750249811199,-828.15,0.00016438,2]
[366424344,1750249811226,-430.0,0.00016438,2]
[366424345,1750249811250,-515.11,0.00016438,2]
[366424346,1750249811276,-490.0,0.00016438,2]
[366424347,1750249811302,-1000.0,0.00016438,2]
[366424348,1750249811326,-1420.33,0.00016438,2]
[366424349,1750249811352,-490.0,0.00016438,2]
[366424350,1750249811376,-490.0,0.00016438,2]
[366424351,1750249811400,-101.42950802,0.00016438,2]
[366424352,1750249814428,-49.57049198,0.00016438,2]
[366424353,1750249814452,-490.0,0.00016438,2]
[366424354,1750249814476,-151.620772,0.00016438,2]
[366424355,1750249814502,-540.38,0.00016438,2]
[366424356,1750249814525,-648.35,0.00016438,2]
[366424357,1750249814548,-490.0,0.00016438,2]
[366424358,1750249814572,-490.0,0.00016438,2]
[366424359,1750249814595,-151.0,0.00016438,2]
[366424360,1750249814618,-151.0,0.00016438,2]
[366424361,1750249814641,-151.0,0.00016438,2]
[366424362,1750249814663,-151.0,0.00016438,2]
[366424363,1750249814687,-151.0,0.00016438,2]
[366424364,1750249814710,-515.62,0.00016438,2]
[366424365,1750249814733,-151.0,0.00016438,2]
[366424366,1750249814754,-490.0,0.00016438,2]
[366424367,1750249814777,-151.0,0.00016438,2]
[366424368,1750249814800,-151.0,0.00016438,2]
[366424369,1750249814829,-151.0,0.00016438,2]
[366424370,1750249814853,-328.86931526,0.00016438,2]
[366424371,1750249814876,-490.0,0.00016438,2]
[366424372,1750249814900,-490.0,0.00016438,2]
[366424373,1750249814923,-1311.64,0.00016438,2]
[366424374,1750249814946,-490.0,0.00016438,2]
[366424375,1750249814969,-490.0,0.00016438,2]
[366424376,1750249814992,-490.0,0.00016438,2]
[366424377,1750249815016,-490.0,0.00016438,2]
[366424378,1750249815039,-194.94942076,0.00016438,2]
[366424379,1750249815144,-295.05057924,0.00016438,2]
[366424380,1750249815167,-712.89,0.00016438,2]
[366424381,1750249815190,-490.0,0.00016438,2]
[366424382,1750249815217,-492.69496138,0.00016438,2]
[366424383,1750249815241,-1233.47,0.00016438,2]
[366424384,1750249815265,-496.59779602,0.00016438,2]
[366424385,1750249815290,-1182.49,0.00016438,2]
[366424386,1750249815314,-293.901268,0.00016438,2]
[366424387,1750249815342,-490.0,0.00016438,2]
[366424388,1750249815367,-592.57,0.00016438,2]
[366424389,1750249815391,-1403.08,0.00016438,2]
[366424390,1750249815416,-1403.08,0.00016438,2]
[366424391,1750249815438,-914.17539536,0.00016438,2]
[366424392,1750249815513,-488.90460464,0.00016438,2]
[366424393,1750249815537,-1403.08,0.00016438,2]
[366424394,1750249815561,-1403.08,0.00016438,2]
[366424395,1750249815585,-490.0,0.00016438,2]
[366424396,1750249815609,-1403.08,0.00016438,2]
[366424397,1750249815632,-1403.08,0.00016438,2]
[366424398,1750249815656,-1315.39,0.00016438,2]
[366424399,1750249815678,-1281.22,0.00016438,2]
[366424400,1750249815701,-490.0,0.00016438,2]
[366424401,1750249815725,-322.16539536,0.00016438,2]
[366424402,1750249815761,-167.83460464,0.00016438,2]
[366424403,1750249815783,-151.0,0.00016438,2]
[366424404,1750249815808,-151.0,0.00016438,2]
[366424405,1750249815830,-151.0,0.00016438,2]
[366424406,1750249815855,-166.268819,0.00016438,2]
[366424407,1750249815882,-490.0,0.00016438,2]
[366424408,1750249815904,-151.0,0.00016438,2]
[366424409,1750249815929,-151.0,0.00016438,2]
[366424410,1750249815951,-490.0,0.00016438,2]
[366424411,1750249815974,-151.0,0.00016438,2]
[366424412,1750249815996,-151.0,0.00016438,2]
[366424413,1750249816018,-151.0,0.00016438,2]
[366424414,1750249816042,-151.0,0.00016438,2]
[366424415,1750249816064,-151.0,0.00016438,2]
[366424416,1750249816088,-250.623403,0.00016438,2]
[366424417,1750249816110,-377.86633215,0.00016438,2]
[366424418,1750249816132,-691.13,0.00016438,2]
[366424419,1750249816157,-291.38203482,0.00016438,2]
[366424420,1750249816179,-783.27,0.00016438,2]
[366424421,1750249816203,-490.0,0.00016438,2]
[366424422,1750249816230,-1005.71,0.00016438,2]
[366424423,1750249816254,-493.28127048,0.00016438,2]
[366424424,1750249816277,-490.0,0.00016438,2]
[366424425,1750249816301,-490.0,0.00016438,2]
[366424426,1750249816334,-1173.45,0.00016438,2]
[366424427,1750249816357,-639.18353591,0.00016438,2]
[366424428,1750249816620,-653.09646409,0.00016438,2]
[366424429,1750249816643,-490.0,0.00016438,2]
[366424430,1750249816666,-459.81436197,0.00016438,2]
[366424431,1750249816689,-1166.42,0.00016438,2]
[366424432,1750249816713,-499.43,0.00016438,2]
[366424433,1750249816737,-490.0,0.00016438,2]
[366424434,1750249816761,-887.66,0.00016438,2]
[366424435,1750249816784,-490.0,0.00016438,2]
[366424436,1750249816807,-490.0,0.00016438,2]
[366424437,1750249816832,-151.0,0.00016438,2]
[366424438,1750249816855,-151.0,0.00016438,2]
[366424439,1750249816877,-490.0,0.00016438,2]
[366424440,1750249816899,-152.187936,0.00016438,2]
[366424441,1750249816922,-490.0,0.00016438,2]
[366424442,1750249816945,-534.31,0.00016438,2]
[366424443,1750249816972,-783.93,0.00016438,2]
[366424444,1750249817015,-1219.63,0.00016438,2]
[366424445,1750249817046,-401.52123794,0.00016438,2]
[366424446,1750249817601,-346.12,0.00015542,2]
[366424447,1750249817666,-88.47876206,0.00016438,2]
[366424448,1750249817706,-1462.09,0.00016438,2]
[366424449,1750249817741,-698.05,0.00016438,2]
[366424450,1750249817775,-490.0,0.00016438,2]
[366424451,1750249817808,-629.37,0.00016438,2]
[366424452,1750249817842,-490.0,0.00016438,2]
[366424453,1750249817875,-1672.06,0.00016438,2]
[366424454,1750249817908,-1574.25,0.00016438,2]
[366424455,1750249817939,-490.0,0.00016438,2]
[366424456,1750249817970,-490.0,0.00016438,2]
[366424457,1750249818001,-490.0,0.00016438,2]
[366424458,1750249818033,-1079.58123794,0.00016438,2]
[366424459,1750249818076,-281.49876206,0.00016438,2]
[366424460,1750249818108,-1293.28,0.00016438,2]
[366424461,1750249818138,-493.29029681,0.00016438,2]
[366424462,1750249818171,-703.63,0.00016438,2]
[366424463,1750249818201,-789.21,0.00016438,2]
[366424464,1750249818235,-152.09827798,0.00016438,2]
[366424465,1750249818266,-555.74,0.00016438,2]
[366424466,1750249818315,-965.07,0.00016438,2]
[366424467,1750249818350,-279.84293113,0.00016438,2]
[366424468,1750249818384,-490.0,0.00016438,2]
[366424469,1750249818418,-490.0,0.00016438,2]
[366424470,1750249818450,-490.0,0.00016438,2]
[366424471,1750249818483,-490.0,0.00016438,2]
[366424472,1750249818519,-807.8,0.00016438,2]
[366424473,1750249818552,-540.98,0.00016438,2]
[366424474,1750249818583,-591.43,0.00016438,2]
[366424475,1750249818614,-490.0,0.00016438,2]
[366424476,1750249818645,-96.12973202,0.00016438,2]
[366424477,1750249818682,-400.13026798,0.00016438,2]
[366424478,1750249818711,-490.0,0.00016438,2]
[366424479,1750249818745,-376.80615616,0.00016438,2]
[366424480,1750249818777,-490.0,0.00016438,2]
[366424481,1750249818811,-1473.47,0.00016438,2]
[366424482,1750249818845,-985.58,0.00016438,2]
[366424483,1750249818880,-490.0,0.00016438,2]
[366424484,1750249818911,-543.97,0.00016438,2]
[366424485,1750249818941,-522.25,0.00016438,2]
[366424486,1750249818972,-873.03,0.00016438,2]
[366424487,1750249819002,-490.0,0.00016438,2]
[366424488,1750249819033,-944.19,0.00016438,2]
[366424489,1750249819064,-490.0,0.00016438,2]
[366424490,1750249819096,-490.0,0.00016438,2]
[366424491,1750249819127,-940.57357586,0.00016438,2]
[366424492,1750249819341,-495.71,0.00016437,2]
[366424493,1750249819372,-260.97642414,0.00016438,2]
[366424494,1750249819402,-490.0,0.00016438,2]
[366424495,1750249819431,-1122.01,0.00016438,2]
[366424496,1750249819459,-151.0,0.00016438,2]
[366424497,1750249819488,-490.0,0.00016438,2]
[366424498,1750249819518,-151.73746,0.00016438,2]
[366424499,1750249819547,-490.0,0.00016438,2]
[366424500,1750249819575,-855.61,0.00016438,2]
[366424501,1750249819603,-490.0,0.00016438,2]
[366424502,1750249819632,-773.79,0.00016438,2]
[366424503,1750249819660,-151.0,0.00016438,2]
[366424504,1750249819689,-490.0,0.00016438,2]
[366424505,1750249819716,-151.0,0.00016438,2]
[366424506,1750249819743,-151.0,0.00016438,2]
[366424507,1750249819770,-151.0,0.00016438,2]
[366424508,1750249819799,-151.0,0.00016438,2]
[366424509,1750249819828,-151.0,0.00016438,2]
[366424510,1750249819855,-490.0,0.00016438,2]
[366424511,1750249819882,-151.0,0.00016438,2]
[366424512,1750249819909,-1250.82,0.00016438,2]
[366424513,1750249819938,-941.34611586,0.00016438,2]
[366424514,1750249820693,-437.09388414,0.00016438,2]
[366424515,1750249820718,-752.69,0.00016438,2]
[366424516,1750249820741,-495.55554165,0.00016438,2]
[366424517,1750249820764,-490.0,0.00016438,2]